fUSD/lending_fUSD_20240502
["ID","MTS","AMOUNT","RATE_DAILY","PERIOD"]
[325303754,1714686676286,-578.3,0.00030958,2]
[325303755,1714686676295,-515.53,0.00030958,2]
[325303756,1714686676305,-500.0,0.00030958,2]
[325303757,1714686676315,-950.5,0.00030958,2]
[325303758,1714686676325,-500.0,0.00030958,2]
[325303759,1714686676335,-500.0,0.00030958,2]
[325303760,1714686676345,-1075.44,0.00030958,2]
[325303761,1714686676354,-500.0,0.00030958,2]
[325303762,1714686676364,-533.2,0.00030958,2]
[325303763,1714686676373,-542.01,0.00030958,2]
[325303764,1714686676383,-770.69,0.00030958,2]
[325303765,1714686676393,-500.0,0.00030958,2]
[325303766,1714686676404,-743.56,0.00030958,2]
[325303767,1714686676415,-947.85,0.00030958,2]
[325303768,1714686676431,-500.0,0.00030958,2]
[325303769,1714686676441,-1179.98,0.00030958,2]
[325303770,1714686676452,-676.03,0.00030958,2]
[325303771,1714686676462,-500.0,0.00030958,2]
[325303772,1714686676472,-653.28,0.00030958,2]
[325303773,1714686676482,-500.0,0.00030958,2]
[325303774,1714686676494,-500.0,0.00030958,2]
[325303775,1714686676504,-500.0,0.00030958,2]
[325303776,1714686676514,-1221.83,0.00030958,2]
[325303777,1714686676533,-663.28,0.00030958,2]
[325303778,1714686676547,-500.0,0.00030958,2]
[325303779,1714686676571,-641.12,0.00030958,2]
[325303780,1714686676588,-500.0,0.00030958,2]
[325303781,1714686676610,-500.0,0.00030958,2]
[325303782,1714686676625,-745.75,0.00030958,2]
[325303783,1714686676640,-980.77,0.00030958,2]
[325303784,1714686676650,-500.0,0.00030958,2]
[325303785,1714686676686,-500.0,0.00030958,2]
[325303786,1714686676701,-755.36,0.00030958,2]
[325303787,1714686676713,-1941.43,0.00030958,2]
[325303788,1714686676726,-907.92,0.00030958,2]
[325303789,1714686676738,-500.0,0.00030958,2]
[325303790,1714686676750,-500.0,0.00030958,2]
[325303791,1714686676760,-500.0,0.00030958,2]
[325303792,1714686676794,-822.44,0.00030958,2]
[325303793,1714686676808,-500.0,0.00030958,2]
[325303794,1714686676818,-500.0,0.00030958,2]
[325303795,1714686676856,-623.06,0.00030958,2]
[325303796,1714686676878,-500.0,0.00030958,2]
[325303797,1714686676889,-1230.66,0.00030958,2]
[325303798,1714686676899,-500.0,0.00030958,2]
[325303799,1714686676908,-500.0,0.00030958,2]
[325303800,1714686676918,-520.02,0.00030958,2]
[325303801,1714686676928,-1115.54,0.00030958,2]
[325303802,1714686676939,-500.0,0.00030958,2]
[325303803,1714686676948,-500.0,0.00030958,2]
[325303804,1714686676958,-500.0,0.00030958,2]
[325303805,1714686676968,-868.71,0.00030958,2]
[325303806,1714686676979,-633.85,0.00030958,2]
[325303807,1714686676989,-500.0,0.00030958,2]
[325303808,1714686676999,-500.0,0.00030958,2]
[325303809,1714686677008,-500.0,0.00030958,2]
[325303810,1714686677019,-1001.32,0.00030958,2]
[325303811,1714686677029,-665.95,0.00030958,2]
[325303812,1714686677038,-1367.19,0.00030958,2]
[325303813,1714686677048,-500.0,0.00030958,2]
[325303814,1714686677058,-5116.35,0.00030958,2]
[325303815,1714686677071,-500.0,0.00030958,2]
[325303816,1714686677080,-500.0,0.00030958,2]
[325303817,1714686677091,-1539.85,0.00030958,2]
[325303818,1714686677100,-1454.53,0.00030958,2]
[325303819,1714686677110,-969.1,0.00030958,2]
[325303820,1714686677121,-1106.61,0.00030958,2]
[325303821,1714686677131,-500.0,0.00030958,2]
[325303822,1714686677140,-500.0,0.00030958,2]
[325303823,1714686677150,-500.0,0.00030958,2]
[325303824,1714686677159,-10444.68,0.00030958,2]
[325303825,1714686677169,-523.43,0.00030958,2]
[325303826,1714686677179,-1454.59,0.00030958,2]
[325303827,1714686677189,-500.0,0.00030958,2]
[325303828,1714686677198,-500.0,0.00030958,2]
[325303829,1714686677208,-1116.71,0.00030958,2]
[325303830,1714686677218,-500.0,0.00030958,2]
[325303831,1714686677228,-986.4,0.00030958,2]
[325303832,1714686677237,-500.0,0.00030958,2]
[325303833,1714686677248,-851.27,0.00030958,2]
[325303834,1714686677258,-500.0,0.00030958,2]
[325303835,1714686677267,-1973.86,0.00030958,2]
[325303836,1714686677277,-3577.68,0.00030958,2]
[325303837,1714686677287,-500.0,0.00030958,2]
[325303838,1714686677296,-424.92454402,0.00030958,2]
[325303839,1714686677306,-379.600175,0.00030958,7]
[325303840,1714686677316,-819.06,0.00030958,2]
[325303841,1714686677326,-500.0,0.00030958,2]
[325303842,1714686677336,-500.0,0.00030958,2]
[325303843,1714686677345,-887.83,0.00030958,2]
[325303844,1714686677354,-500.0,0.00030958,2]
[325303845,1714686677365,-746.33,0.00030958,2]
[325303846,1714686677374,-9615.22,0.00030958,2]
[325303847,1714686677384,-525.6,0.00030958,2]
[325303848,1714686677394,-1076.78,0.00030958,2]
[325303849,1714686677404,-379.600175,0.00030958,7]
[325303850,1714686677414,-1507.5,0.00030958,2]
[325303851,1714686677424,-1898.55,0.00030958,2]
[325303852,1714686677434,-778.18,0.00030958,2]
[325303853,1714686677444,-151.0,0.00030958,7]
[325303854,1714686677454,-1214.77,0.00030958,2]
[325303855,1714686677464,-226.387319,0.00030958,7]
[325303856,1714686677474,-1869.85,0.00030958,2]
[325303857,1714686677484,-500.0,0.00030958,2]
[325303858,1714686677493,-765.27,0.00030958,2]
[325303859,1714686677503,-1332.63,0.00030958,2]
[325303860,1714686677513,-1494.12,0.00030958,2]
[325303861,1714686677523,-151.0,0.00030958,7]
[325303862,1714686677533,-2808.71,0.00030958,2]
[325303863,1714686677542,-848.89,0.00030958,2]
[325303864,1714686677552,-748.84,0.00030958,2]
[325303865,1714686677562,-500.0,0.00030958,2]
[325303866,1714686677571,-500.0,0.00030958,2]
[325303867,1714686677581,-226.387319,0.00030958,7]
[325303868,1714686677590,-7720.07,0.00030958,2]
[325303869,1714686677600,-26442.21,0.00030958,2]
[325303870,1714686677610,-748.05,0.00030958,2]
[325303871,1714686677620,-500.0,0.00030958,2]
[325303872,1714686677630,-1273.99,0.00030958,2]
[325303873,1714686677641,-862.76,0.00030958,2]
[325303874,1714686677651,-7197.96,0.00030958,2]
[325303875,1714686677661,-16153.0,0.00030958,2]
[325303876,1714686677671,-847.87,0.00030958,2]
[325303877,1714686677681,-759.69,0.00030958,2]
[325303878,1714686677692,-652.7,0.00030958,2]
[325303879,1714686677702,-37893.06,0.00030958,2]
[325303880,1714686677713,-623.36,0.00030958,2]
[325303881,1714686677722,-500.0,0.00030958,2]
[325303882,1714686677732,-2087.53,0.00030958,2]
[325303883,1714686677742,-2200.02,0.00030958,2]
[325303884,1714686677752,-766.927586,0.00030958,7]
[325303885,1714686677762,-1420.9,0.00030958,2]
[325303886,1714686677773,-10025.94,0.00030958,2]
[325303887,1714686677784,-936.72,0.00030958,2]
[325303888,1714686677794,-1013.84,0.00030958,2]
[325303889,1714686677806,-899.02,0.00030958,2]
[325303890,1714686677816,-500.0,0.00030958,2]
[325303891,1714686677826,-2390.03,0.00030958,2]
[325303892,1714686677836,-3613.98,0.00030958,2]
[325303893,1714686677848,-766.927586,0.00030958,7]
[325303894,1714686677859,-2485.7,0.00030958,2]
[325303895,1714686677869,-623.79,0.00030958,2]
[325303896,1714686677879,-2608.35,0.00030958,2]
[325303897,1714686677890,-500.0,0.00030958,2]
[325303898,1714686677900,-661.74,0.00030958,2]
[325303899,1714686677910,-813.27,0.00030958,2]
[325303900,1714686677920,-1084.38,0.00030958,2]
[325303901,1714686677930,-500.0,0.00030958,2]
[325303902,1714686677940,-151.0,0.00030958,7]
[325303903,1714686677950,-500.0,0.00030958,2]
[325303904,1714686677960,-6799.36,0.00030958,2]
[325303905,1714686677970,-822.14,0.00030958,2]
[325303906,1714686677980,-2813.98,0.00030958,2]
[325303907,1714686678217,-500.0,0.00030958,2]
[325303908,1714686678228,-927.149348,0.00030958,7]
[325303909,1714686678237,-2091.13,0.00030958,2]
[325303910,1714686678246,-151.0,0.00030958,7]
[325303911,1714686678255,-542.92,0.00030958,2]
[325303912,1714686678265,-500.0,0.00030958,2]
[325303913,1714686678275,-708.4,0.00030958,2]
[325303914,1714686678284,-500.0,0.00030958,2]
[325303915,1714686678293,-500.0,0.00030958,2]
[325303916,1714686678302,-2730.73,0.00030958,2]
[325303917,1714686678311,-3095.6,0.00030958,2]
[325303918,1714686678321,-2259.43,0.00030958,2]
[325303919,1714686678330,-500.0,0.00030958,2]
[325303920,1714686678339,-500.0,0.00030958,2]
[325303921,1714686678349,-927.149348,0.00030958,7]
[325303922,1714686678358,-500.0,0.00030958,2]
[325303923,1714686678367,-521.83,0.00030958,2]
[325303924,1714686678377,-1132.55,0.00030958,2]
[325303925,1714686678386,-601.93,0.00030958,2]
[325303926,1714686678395,-500.0,0.00030958,2]
[325303927,1714686678404,-9902.82,0.00030958,2]
[325303928,1714686678413,-500.0,0.00030958,2]
[325303929,1714686678422,-758.39,0.00030958,2]
[325303930,1714686678432,-628.77,0.00030958,2]
[325303931,1714686678440,-522.89,0.00030958,2]
[325303932,1714686678451,-6079.29,0.00030958,2]
[325303933,1714686678460,-6844.26,0.00030958,2]
[325303934,1714686678469,-2915.11,0.00030958,2]
[325303935,1714686678479,-581.23,0.00030958,2]
[325303936,1714686678489,-776.84,0.00030958,2]
[325303937,1714686678498,-601.83,0.00030958,2]
[325303938,1714686678508,-1917.49,0.00030958,2]
[325303939,1714686678517,-1118.82,0.00030958,2]
[325303940,1714686678528,-1039.59,0.00030958,2]
[325303941,1714686678538,-935.34,0.00030958,2]
[325303942,1714686678548,-1047.53,0.00030958,2]
[325303943,1714686678558,-55497.91,0.00030958,2]
[325303944,1714686678568,-500.0,0.00030958,2]
[325303945,1714686678577,-725.73,0.00030958,2]
[325303946,1714686678587,-1027.64,0.00030958,2]
[325303947,1714686678596,-24224.22,0.00030958,2]
[325303948,1714686678606,-854.188572,0.00030958,7]
[325303949,1714686678615,-1536.48,0.00030958,2]
[325303950,1714686678625,-500.0,0.00030958,2]
[325303951,1714686678635,-500.0,0.00030958,2]
[325303952,1714686678645,-304.063757,0.00030958,7]
[325303953,1714686678655,-500.0,0.00030958,2]
[325303954,1714686678664,-500.0,0.00030958,2]
[325303955,1714686678675,-500.0,0.00030958,2]
[325303956,1714686678685,-4410.34,0.00030958,2]
[325303957,1714686678695,-854.188572,0.00030958,7]
[325303958,1714686678705,-2235.86,0.00030958,2]
[325303959,1714686678715,-304.063757,0.00030958,7]
[325303960,1714686678726,-5069.58,0.00030958,2]
[325303961,1714686678735,-2269.91,0.00030958,2]
[325303962,1714686678745,-500.0,0.00030958,2]
[325303963,1714686678755,-1511.37,0.00030958,2]
[325303964,1714686678765,-863.34,0.00030958,2]
[325303965,1714686678775,-7334.02,0.00030958,2]
[325303966,1714686678790,-500.0,0.00030958,2]
[325303967,1714686678801,-500.0,0.00030958,2]
[325303968,1714686678810,-2505.7,0.00030958,2]
[325303969,1714686678820,-1722.02,0.00030958,2]
[325303970,1714686678831,-1573.95,0.00030958,2]
[325303971,1714686678840,-753.72,0.00030958,2]
[325303972,1714686678850,-625.47,0.00030958,2]
[325303973,1714686678860,-500.0,0.00030958,2]
[325303974,1714686678870,-2326.88,0.00030958,2]
[325303975,1714686678881,-500.0,0.00030958,2]
[325303976,1714686678891,-500.0,0.00030958,2]
[325303977,1714686678902,-500.0,0.00030958,2]
[325303978,1714686678911,-500.0,0.00030958,2]
[325303979,1714686678921,-1097.91,0.00030958,2]
[325303980,1714686678938,-2271.83,0.00030958,2]
[325303981,1714686678947,-1272.77,0.00030958,2]
[325303982,1714686678958,-2327.52,0.00030958,2]
[325303983,1714686678968,-3282.13,0.00030958,2]
[325303984,1714686678977,-1970.05,0.00030958,2]
[325303985,1714686678987,-14524.03,0.00030958,2]
[325303986,1714686678997,-860.16,0.00030958,2]
[325303987,1714686679007,-500.0,0.00030958,2]
[325303988,1714686679017,-500.0,0.00030958,2]
[325303989,1714686679027,-1157.93,0.00030958,2]
[325303990,1714686679037,-1023.64,0.00030958,2]
[325303991,1714686679046,-3744.53,0.00030958,2]
[325303992,1714686679055,-500.0,0.00030958,2]
[325303993,1714686679066,-500.0,0.00030958,2]
[325303994,1714686679076,-451.483902,0.00030958,7]
[325303995,1714686679086,-5851.38,0.00030958,2]
[325303996,1714686679096,-1309.0,0.00030958,2]
[325303997,1714686679106,-1281.56,0.00030958,2]
[325303998,1714686679115,-500.0,0.00030958,2]
[325303999,1714686679124,-3015.36,0.00030958,2]
[325304000,1714686679134,-4998.46,0.00030958,2]
[325304001,1714686679143,-1468.33,0.00030958,2]
[325304002,1714686679153,-451.483902,0.00030958,7]
[325304003,1714686679162,-2293.55,0.00030958,2]
[325304004,1714686679171,-992.6,0.00030958,2]
[325304005,1714686679181,-2716.45,0.00030958,2]
[325304006,1714686679190,-611.07,0.00030958,2]
[325304007,1714686679199,-1157.21,0.00030958,2]
[325304008,1714686679209,-615.65,0.00030958,2]
[325304009,1714686679218,-1201.24,0.00030958,2]
[325304010,1714686679228,-1264.32,0.00030958,2]
[325304011,1714686679237,-500.0,0.00030958,2]
[325304012,1714686679246,-2355.26,0.00030958,2]
[325304013,1714686679256,-2303.03,0.00030958,2]
[325304014,1714686679265,-500.0,0.00030958,2]
[325304015,1714686679276,-4486.25,0.00030958,2]
[325304016,1714686679286,-150.0,0.00030958,2]
[325304017,1714686679295,-14227.8,0.00030958,2]
[325304018,1714686679304,-500.0,0.00030958,2]
[325304019,1714686679313,-500.0,0.00030958,2]
[325304020,1714686679323,-523.44480774,0.00030958,2]
[325304021,1714686679333,-1807.48,0.00030958,2]
[325304022,1714686679342,-680.24,0.00030958,2]
[325304023,1714686679352,-2911.84,0.00030958,2]
[325304024,1714686679361,-697.68,0.00030958,2]
[325304025,1714686679371,-1393.37,0.00030958,2]
[325304026,1714686679380,-5019.25,0.00030958,2]
[325304027,1714686679390,-1228.03,0.00030958,2]
[325304028,1714686679398,-500.0,0.00030958,2]
[325304029,1714686679407,-670.94,0.00030958,2]
[325304030,1714686679417,-4386.58,0.00030958,2]
[325304031,1714686679427,-5601.84,0.00030958,2]
[325304032,1714686679436,-3126.38,0.00030958,2]
[325304033,1714686679446,-1072.19,0.00030958,2]
[325304034,1714686679455,-500.0,0.00030958,2]
[325304035,1714686679465,-4006.64,0.00030958,2]
[325304036,1714686679474,-764.19,0.00030958,2]
[325304037,1714686679483,-500.0,0.00030958,2]
[325304038,1714686679492,-2853.25,0.00030958,2]
[325304039,1714686679502,-2003.34,0.00030958,2]
[325304040,1714686679511,-578.22,0.00030958,2]
[325304041,1714686679520,-500.0,0.00030958,2]
[325304042,1714686679530,-13559.47,0.00030958,2]
[325304043,1714686679540,-2421.42,0.00030958,2]
[325304044,1714686679549,-3793.93,0.00030958,2]
[325304045,1714686679559,-500.0,0.00030958,2]
[325304046,1714686679568,-3387.88,0.00030958,2]
[325304047,1714686679578,-500.0,0.00030958,2]
[325304048,1714686679587,-2002.39,0.00030958,2]
[325304049,1714686679596,-4495.12,0.00030958,2]
[325304050,1714686679606,-500.0,0.00030958,2]
[325304051,1714686679614,-1486.8,0.00030958,2]
[325304052,1714686679623,-820.19,0.00030958,2]
[325304053,1714686679632,-500.0,0.00030958,2]
[325304054,1714686679641,-4884.76,0.00030958,2]
[325304055,1714686679651,-500.0,0.00030958,2]
[325304056,1714686679661,-1429.34,0.00030958,2]
[325304057,1714686679670,-805.21,0.00030958,2]
[325304058,1714686679679,-605.63,0.00030958,2]
[325304059,1714686679689,-6098.53,0.00030958,2]
[325304060,1714686679698,-2542.03,0.00030958,2]
[325304061,1714686679707,-2944.08,0.00030958,2]
[325304062,1714686679717,-658.45,0.00030958,2]
[325304063,1714686679726,-631.62,0.00030958,2]
[325304064,1714686679735,-2477.22,0.00030958,2]
[325304065,1714686679745,-1225.56,0.00030958,2]
[325304066,1714686679754,-684.93,0.00030958,2]
[325304067,1714686679764,-944.59,0.00030958,2]
[325304068,1714686679774,-1224.67,0.00030958,2]
[325304069,1714686679783,-500.0,0.00030958,2]
[325304070,1714686679793,-500.0,0.00030958,2]
[325304071,1714686679806,-2250.25,0.00030958,2]
[325304072,1714686679815,-2072.64,0.00030958,2]
[325304073,1714686679824,-10784.94,0.00030958,2]
[325304074,1714686679834,-500.0,0.00030958,2]
[325304075,1714686679845,-638.69,0.00030958,2]
[325304076,1714686679855,-4836.91,0.00030958,2]
[325304077,1714686679864,-1308.43,0.00030958,2]
[325304078,1714686679873,-9541.71,0.00030958,2]
[325304079,1714686679883,-1604.49,0.00030958,2]
[325304080,1714686679894,-1765.11,0.00030958,2]
[325304081,1714686679903,-500.0,0.00030958,2]
[325304082,1714686679912,-500.0,0.00030958,2]
[325304083,1714686679922,-500.0,0.00030958,2]
[325304084,1714686679932,-500.0,0.00030958,2]
[325304085,1714686679941,-7454.18,0.00030958,2]
[325304086,1714686679950,-500.0,0.00030958,2]
[325304087,1714686679959,-1003.98,0.00030958,2]
[325304088,1714686679969,-10383.43,0.00030958,2]
[325304089,1714686679978,-562.17,0.00030958,2]
[325304090,1714686679987,-9568.3,0.00030958,2]
[325304091,1714686679997,-6249.14,0.00030958,2]
[325304092,1714686680006,-500.0,0.00030958,2]
[325304093,1714686680016,-748.97,0.00030958,2]
[325304094,1714686680026,-6280.71,0.00030958,2]
[325304095,1714686680036,-500.0,0.00030958,2]
[325304096,1714686680045,-500.0,0.00030958,2]
[325304097,1714686680054,-500.0,0.00030958,2]
[325304098,1714686680066,-3507.51,0.00030958,2]
[325304099,1714686680076,-500.0,0.00030958,2]
[325304100,1714686680085,-500.0,0.00030958,2]
[325304101,1714686680095,-500.0,0.00030958,2]
[325304102,1714686680105,-500.0,0.00030958,2]
[325304103,1714686680114,-1933.65,0.00030958,2]
[325304104,1714686680123,-1874.1,0.00030958,2]
[325304105,1714686680133,-4427.9,0.00030958,2]
[325304106,1714686680143,-41218.55,0.00030958,2]
[325304107,1714686680153,-1985.25,0.00030958,2]
[325304108,1714686680162,-500.0,0.00030958,2]
[325304109,1714686680171,-6773.92,0.00030958,2]
[325304110,1714686680180,-3415.75,0.00030958,2]
[325304111,1714686680190,-2684.73,0.00030958,2]
[325304112,1714686680199,-1267.12,0.00030958,2]
[325304113,1714686680209,-1505.97,0.00030958,2]
[325304114,1714686680219,-500.0,0.00030958,2]
[325304115,1714686680229,-561.69,0.00030958,2]
[325304116,1714686680238,-11863.31,0.00030958,2]
[325304117,1714686680247,-500.0,0.00030958,2]
[325304118,1714686680256,-1149.85,0.00030958,2]
[325304119,1714686680265,-6929.85,0.00030958,2]
[325304120,1714686680274,-2682.45,0.00030958,2]
[325304121,1714686680284,-388.77,0.00030958,2]
[325304122,1714686680293,-500.0,0.00030958,2]
[325304123,1714686680303,-881.56,0.00030958,2]
[325304124,1714686680313,-13656.32,0.00030958,2]
[325304125,1714686680323,-526.81,0.00030958,2]
[325304126,1714686680333,-500.0,0.00030958,2]
[325304127,1714686680342,-1625.32,0.00030958,2]
[325304128,1714686680351,-500.0,0.00030958,2]
[325304129,1714686680361,-1385.99,0.00030958,2]
[325304130,1714686680371,-1313.93,0.00030958,2]
[325304131,1714686680380,-2288.77,0.00030958,2]
[325304132,1714686680390,-500.0,0.00030958,2]
[325304133,1714686680399,-3339.52,0.00030958,2]
[325304134,1714686680408,-1431.25,0.00030958,2]
[325304135,1714686680418,-11261.58,0.00030958,2]
[325304136,1714686680428,-593.13,0.00030958,2]
[325304137,1714686680438,-500.0,0.00030958,2]
[325304138,1714686680448,-500.0,0.00030958,2]
[325304139,1714686680458,-1105.95,0.00030958,2]
[325304140,1714686680469,-840.06,0.00030958,2]
[325304141,1714686680478,-964.27,0.00030958,2]
[325304142,1714686680487,-1839.82,0.00030958,2]
[325304143,1714686680497,-6770.85,0.00030958,2]
[325304144,1714686680604,-3263.27,0.00030958,2]
[325304145,1714686680614,-669.6,0.00030958,2]
[325304146,1714686680624,-4123.37,0.00030958,2]
[325304147,1714686680633,-4745.78,0.00030958,2]
[325304148,1714686680642,-500.0,0.00030958,2]
[325304149,1714686680651,-1185.64,0.00030958,2]
[325304150,1714686680661,-500.0,0.00030958,2]
[325304151,1714686680670,-1003.58,0.00030958,2]
[325304152,1714686680679,-500.0,0.00030958,2]
[325304153,1714686680689,-500.0,0.00030958,2]
[325304154,1714686680699,-2295.73,0.00030958,2]
[325304155,1714686680709,-500.0,0.00030958,2]
[325304156,1714686680718,-500.0,0.00030958,2]
[325304157,1714686680728,-839.4,0.00030958,2]
[325304158,1714686680738,-2139.56,0.00030958,2]
[325304159,1714686680748,-2595.03,0.00030958,2]
[325304160,1714686680758,-3050.15,0.00030958,2]
[325304161,1714686680768,-517.995789,0.00030958,7]
[325304162,1714686680783,-4543.5,0.00030958,2]
[325304163,1714686680794,-500.0,0.00030958,2]
[325304164,1714686680804,-607.8,0.00030958,2]
[325304165,1714686680814,-1623.77,0.00030958,2]
[325304166,1714686680825,-500.0,0.00030958,2]
[325304167,1714686680835,-8647.19,0.00030959,3]
[325304168,1714686680845,-151.0,0.00030979,7]
[325304169,1714686680854,-151.0,0.00030979,7]
[325304170,1714686680864,-151.0,0.00030989,7]
[325304171,1714686680874,-151.0,0.00030989,7]
[325304172,1714686680883,-151.0,0.00030989,7]
[325304173,1714686680894,-621.181752,0.00030989,7]
[325304174,1714686680903,-621.181752,0.00030989,7]
[325304175,1714686680913,-150.01,0.00030998,2]
[325304176,1714686680923,-157.050306,0.00030998,12]
[325304177,1714686680933,-157.050306,0.00030998,10]
[325304178,1714686680942,-157.050306,0.00030998,6]
[325304179,1714686680951,-2037.98280737,0.00030998,2]
[325304180,1714686680962,-150.0,0.00030999,10]
[325304181,1714686680971,-150.0,0.00030999,10]
[325304182,1714686680981,-150.0,0.00030999,10]
[325304183,1714686680990,-150.0,0.00030999,10]
[325304184,1714686680999,-150.0,0.00030999,10]
[325304185,1714686681009,-150.0,0.00030999,10]
[325304186,1714686681018,-150.0,0.00030999,10]
[325304187,1714686681029,-150.0,0.00030999,10]
[325304188,1714686681038,-150.0,0.00030999,10]
[325304189,1714686681047,-150.0,0.00030999,10]
[325304190,1714686681057,-150.0,0.00030999,10]
[325304191,1714686681069,-150.0,0.00030999,10]
[325304192,1714686681079,-150.0,0.00030999,10]
[325304193,1714686681088,-150.0,0.00030999,10]
[325304194,1714686681098,-150.0,0.00030999,10]
[325304195,1714686681107,-150.0,0.00030999,10]
[325304196,1714686681117,-150.0,0.00030999,10]
[325304197,1714686681127,-150.0,0.00030999,10]
[325304198,1714686681136,-150.0,0.00030999,10]
[325304199,1714686681146,-155.67442186,0.00030999,10]
[325304200,1714686681155,-1687.67723229,0.00031,3]
[325304201,1714686681170,-3159692.41802488,0.00031,5]
[325304202,1714686681702,-1225583.08031806,0.00031,5]
[325304203,1714686681714,-853789.11439754,0.00031,5]
[325304204,1714686681726,-1311302.40206392,0.00031,5]
[325304205,1714686681738,-530.88477833,0.00031,5]
[325304206,1714686681749,-3127.0,0.00031,5]
[325304207,1714686681761,-2530974.68364194,0.00031,5]
[325304208,1714686682370,-500.0,0.00019178,2]
[325304209,1714686682380,-500.0,0.00019178,2]
[325304210,1714686682389,-500.0,0.00019178,2]
[325304211,1714686682398,-500.0,0.00019178,2]
[325304212,1714686682408,-62.48042031,0.00019178,2]
[325304213,1714686682419,-437.51957969,0.00019178,2]
[325304214,1714686682428,-273.47274069,0.00019178,2]
[325304215,1714686682440,-226.52725931,0.00019178,2]
[325304216,1714686682449,-405.82842861,0.00019178,2]
[325304217,1714686682461,-94.17157139,0.00019178,2]
[325304218,1714686682471,-500.0,0.00019178,2]
[325304219,1714686682481,-500.0,0.00019178,2]
[325304220,1714686682490,-500.0,0.00019178,2]
[325304221,1714686682500,-500.0,0.00019178,2]
[325304222,1714686682510,-500.0,0.00019178,2]
[325304223,1714686682519,-500.0,0.00019178,2]
[325304224,1714686682529,-500.0,0.00019178,2]
[325304225,1714686682539,-500.0,0.00019178,2]
[325304226,1714686682548,-573.08050039,0.00019178,2]
[325304227,1714686682558,-490.56177163,0.00024549,2]
[325304228,1714686682567,-490.56177163,0.00024662,2]
[325304229,1714686682577,-490.56177163,0.00024776,2]
[325304230,1714686682586,-3107.78,0.000269,2]
[325304231,1714686682596,-3107.78,0.000281,2]
[325304232,1714686682605,-3107.78,0.000294,2]
[325304233,1714686682615,-500.0,0.00030136,2]
[325304234,1714686682624,-500.0,0.00030136,2]
[325304235,1714686682633,-500.0,0.0003041,2]
[325304236,1714686682643,-517.995789,0.00030584,7]
[325304237,1714686682653,-500.0,0.00030684,2]
[325304238,1714686682663,-500.0,0.00030958,2]
[325304239,1714686682673,-500.0,0.00030958,2]
[325304240,1714686682683,-166.52160811,0.00031,5]
[325304241,1714686682695,-1893.0,0.00031,5]
[325304242,1714686682707,-3097.70689416,0.00031,5]
[325304243,1714686682719,-983268.50143123,0.00031,5]
[325304244,1714686682731,-292.00081544,0.00031,5]
[325304245,1714686682743,-1622.1000002,0.00031,5]
[325304246,1714686682755,-908.61920816,0.00031,5]
[325304247,1714686682768,-472.93999962,0.00031,5]
[325304248,1714686682785,-1842.5000002,0.00031,5]
[325304249,1714686682806,-216358.6701387,0.00031,5]
[325304250,1714686682818,-1458.78306831,0.00031,5]
[325304251,1714686682832,-2185.50842403,0.00031,5]
[325304252,1714686682844,-893.67910188,0.00031,5]
[325304253,1714686682857,-6482.28168,0.00031,5]